[Event "Krakow Championship-A 2022"]
[Site "Krakow"]
[Date "2022.06.26"]
[Round "2.17"]
[White "Jacobsen, Mikkel Manosri"]
[Black "Zwardon, Vojtech"]
[Result "0-1"]
[ECO "D26"]
[WhiteElo "2251"]
[BlackElo "2482"]
[Annotator "TA"]
[PlyCount "58"]
[EventDate "2022.06.25"]
[EventType "swiss"]
[EventCountry "POL"]
[SourceTitle "playchess.com"]
[Source "ChessBase"]
[SourceQuality "1"]
[TimeControl "40/5400+30:1800+30"]

{[%evp 10,58,33,10,10,12,16,16,25,25,24,8,8,0,0,0,0,0,0,-27,-30,-27,-31,-25,8,-25,-23,-31,-20,-21,-12,-18,0,0,0,0,0,-60,-58,-50,-52,-59,-25,-462,-447,-447,-373,-351,-279,-283,-267]} 1. d4 {[%emt 0:00:05]} Nf6 {[%emt 0:00:32]} 2. Nf3 {[%emt 0:00:06]} e6 {[%emt 0:00:02]} 3. c4 {[%emt 0:00:06]} d5 {[%emt 0:00:02]} 4. e3 {[%emt 0:00:26]} dxc4 {[%emt 0:00:04]} 5. Bxc4 {[%emt 0:00:06]} a6 {[%emt 0:00:01]} 6. a4 {[%emt 0:00:09]} b6 {[%emt 0:00:04] D26: Queen's Gambit Accepted: 4 e3 e6 5 Bxc5 c5 sidelines.} 7. O-O {[%emt 0:02:02][%cal Oe3e4]} Bb7 {[%emt 0:00:28]} 8. Qe2 {[%emt 0:00:24]} c5 {[%emt 0:02:23] The position is equal.} 9. Rd1 {[%emt 0:02:17]} Qc7 {[%emt 0:01:27]} 10. Nc3 {[%emt 0:01:52]} Be7 {[%emt 0:01:38]} 11. dxc5 {[%emt 0:12:57]} Bxc5 {[%emt 0:02:40] [#]} 12. Bd2 $146 {[%emt 0:04:03][%cal Oa4a5]} ({Predecessor:} 12. b3 Nc6 13. Bb2 O-O 14. Na2 Qe7 15. Ne5 Na5 16. h3 b5 17. Bc3 bxc4 18. Bxa5 cxb3 {0-1 (31) Turay,G (1907)-Kovacs,L (2043) Hungary 2010}) 12... Nbd7 {[%emt 0:01:52]} 13. Rac1 {[%emt 0:04:11][%cal Oa4a5]} O-O {[%emt 0:06:34] Hoping for ...Ng4.} 14. Ba2 {[%emt 0:06:32][%cal Ob2b4]} (14. Bd3 $5 {[%cal Rb2b4]}) 14... Ng4 {[%emt 0:03:31]} 15. h3 {[%emt 0:02:05]} Bxf3 {[%emt 0:00:28]} 16. Qxf3 {[%emt 0:00:10]} Qh2+ {[%emt 0:00:03]} 17. Kf1 {[%emt 0:00:46]} Nge5 {[%emt 0:00:14]} ({Resist} 17... Nde5 18. Qf4 Qxf4 19. exf4 $14) 18. Qg3 {[%emt 0:04:35]} Qxg3 {[%emt 0:00:07]} 19. fxg3 {[%emt 0:00:02]} Nd3 {[%emt 0:00:34]} 20. Rb1 {[%emt 0:00:51]} Nf6 {[%emt 0:01:07]} 21. g4 {[%emt 0:04:32]} h6 {[%emt 0:08:16]} 22. Ke2 {[%emt 0:02:13]} Rfd8 {[%emt 0:00:43]} 23. Rf1 {[%emt 0:17:40]} (23. Bc4 $11 Ne5 24. Bb3) 23... b5 $15 {[%emt 0:03:55]} 24. axb5 {[%emt 0:02:38]} axb5 {[%emt 0:00:37] [#] White must now prevent ...b4.} 25. Bb3 {[%emt 0:01:09]} b4 $36 {[%emt 0:01:21][%mdl 2048] Black is more active.} 26. Nd1 {[%emt 0:00:57][%mdl 8192] This move loses the game for White.} (26. Na4 $11) 26... Ne4 $19 {[%emt 0:00:51][%cal Bf6e4,Be4d2,Bd2f3][%mdl 32] Pair of Knights!} 27. Rf3 {[%emt 0:02:39] Against Ng3+} Nf4+ {[%emt 0:09:23]} 28. exf4 {[%emt 0:02:17] [#] Threatens to win with Be1.} Nxd2 {[%emt 0:00:19]} 29. Rc1 {[%emt 0:00:27]} Nxf3 {[%emt 0:00:07] Weighted Error Value: White=0.39/Black=0.10 (very precise)} 0-1

[Event "Krakow Championship-A 2022"]
[Site "Krakow"]
[Date "2022.06.26"]
[Round "2.18"]
[White "Michalicka, Milan"]
[Black "Malicka, Maria"]
[Result "1-0"]
[ECO "D85"]
[WhiteElo "2222"]
[BlackElo "2377"]
[Annotator "TA"]
[PlyCount "107"]
[EventDate "2022.06.25"]
[EventType "swiss"]
[EventCountry "POL"]
[SourceTitle "playchess.com"]
[Source "ChessBase"]
[SourceQuality "1"]
[TimeControl "40/5400+30:1800+30"]

{[%evp 25,107,2,12,0,0,0,0,0,0,0,0,0,0,0,0,0,0,0,0,0,6,0,0,0,7,0,0,0,75,5,10,-34,-34,-35,-35,-39,-23,-24,9,0,0,0,17,17,52,55,54,50,114,116,105,103,104,97,107,65,289,289,289,289,275,275,859,851,1558,1484,1136,998,6650,6293,6111,6103,6102,5202,29959,29960,29959,29957,29954,29951,6743,6452,4133,1126]} 1. d4 {[%emt 0:00:03]} Nf6 {[%emt 0:00:03]} 2. c4 {[%emt 0:00:10]} g6 {[%emt 0:00:04]} 3. Nc3 {[%emt 0:00:13]} d5 {[%emt 0:00:08]} 4. cxd5 Nxd5 5. e4 {[%emt 0:00:45]} Nxc3 {[%emt 0:00:06]} 6. bxc3 {[%emt 0:00:05]} Bg7 {[%emt 0:00:04]} 7. Nf3 {[%emt 0:00:26]} c5 {[%emt 0:00:06]} 8. Be3 {[%emt 0:00:19]} Qa5 {[%emt 0:00:10]} 9. Qd2 {[%emt 0:00:29]} Nc6 {[%emt 0:01:44]} 10. Rb1 {[%emt 0:00:27]} a6 {[%emt 0:02:00]} 11. Rc1 {[%emt 0:00:38]} cxd4 {[%emt 0:00:08]} 12. cxd4 {[%emt 0:00:30]} Qxd2+ {[%emt 0:00:05]} 13. Kxd2 {[%emt 0:00:17]} e6 {[%emt 0:01:03]} 14. Bc4 {[%emt 0:04:42] D85: Exchange Grünfeld: Unusual White 7th moves and lines with 7 Nf3.} O-O {[%emt 0:01:36]} 15. Rhd1 {[%emt 0:02:01]} Bd7 {[%emt 0:11:45]} 16. Ke2 {[%emt 0:01:25] The position is equal.} Na5 {[%emt 0:05:31]} 17. Bd3 {[%emt 0:00:34]} Ba4 {[%emt 0:01:01]} 18. Re1 {[%emt 0:05:17] [#]} Rac8 $146 {[%emt 0:03:05]} ({Predecessor:} 18... Nc6 19. Rb1 Rfd8 20. Rxb7 Nxd4+ 21. Bxd4 Bxd4 22. Rb4 Bc3 23. Rxa4 Bxe1 24. Nxe1 a5 {1-0 (31) Munoz Avila,J (2146)-Garrido Legarreta,J (2006) Getxo 2019}) 19. Rxc8 {[%emt 0:19:13]} Rxc8 {[%emt 0:00:16]} 20. Rc1 {[%emt 0:00:06]} Rxc1 {[%emt 0:02:49]} 21. Bxc1 {[%emt 0:00:05]} Nc6 {[%emt 0:13:59]} 22. Bb2 {[%emt 0:02:42]} b5 {[%emt 0:21:45]} 23. Ke3 {[%emt 0:11:28]} Bh6+ {[%emt 0:06:48]} 24. Ke2 {[%emt 0:00:06]} Bg7 {[%emt 0:00:06]} 25. Ke3 {[%emt 0:00:36][%cal Od4d5]} Bh6+ {[%emt 0:04:49]} 26. Ke2 {[%emt 0:00:10]} f5 {[%emt 0:01:49]} (26... Bg7 $11) 27. exf5 {[%emt 0:06:50]} ({White should try} 27. d5 $16 exd5 28. exf5 (28. exd5 Nb4 $11)) 27... exf5 $11 {[%emt 0:02:38]} 28. Ne1 {[%emt 0:06:58]} Kf7 {[%emt 0:07:14]} 29. Bb1 {[%emt 0:06:18]} Ke6 {[%emt 0:02:42]} 30. Nd3 {[%emt 0:00:40]} Kd5 {[%emt 0:02:33]} 31. Nc5 $1 {[%emt 0:00:31]} Bg7 {[%emt 0:03:50]} 32. Nxa4 {[%emt 0:01:35] [#] Hoping for Nb6+.} bxa4 {[%emt 0:00:01][%mdl 4096] Endgame KBB-KBN} 33. Bc2 {[%emt 0:02:57]} Bxd4 {[%emt 0:04:50]} 34. Bc1 {[%emt 0:01:11]} Ne5 {[%emt 0:01:59]} 35. Bxa4 {[%emt 0:00:20]} Ng4 {[%emt 0:00:37]} 36. Bb3+ {[%emt 0:00:29] A strong pair of Bishops.} Ke5 {[%emt 0:00:12] [#]} (36... Kc5 $14) 37. f3 $1 $16 {[%emt 0:00:52]} Nf6 {[%emt 0:00:02]} 38. Kd3 {[%emt 0:00:58]} Ba1 {[%emt 0:00:09]} 39. Bc4 {[%emt 0:04:15]} Nd5 {[%emt 0:00:37]} 40. Bd2 {[%emt 0:01:08]} a5 $2 {[%emt 0:00:56] This move loses the game for Black.} (40... Nf4+ $14 41. Bxf4+ Kxf4) 41. Bxd5 $18 {[%emt 0:30:21]} ({Not} 41. Bxa5 Nf4+ 42. Kd2 Nxg2 $16) 41... Kxd5 {[%emt 0:30:01]} 42. Bxa5 {[%emt 0:00:11] Bc3 is the strong threat. KB-KB} Be5 {[%emt 0:00:25]} 43. h3 {[%emt 0:00:18][%cal Bh2h3,Bh3g4][%mdl 32]} g5 $2 {[%emt 0:00:00]} (43... Kc5 44. a4 Bg3) 44. g4 {[%emt 0:00:00]} fxg4 {[%emt 0:00:00]} 45. hxg4 {[%emt 0:00:00]} Bd6 {[%emt 0:00:00]} 46. Bd2 {[%emt 0:00:00]} h6 {[%emt 0:00:00]} 47. Bc3 {[%emt 0:00:00]} Ke6 {[%emt 0:00:00]} 48. Ke4 {[%emt 0:00:00] White threatens a4 and mate.} Ba3 {[%emt 0:00:00]} 49. Ba1 {[%emt 0:00:00]} Kf7 {[%emt 0:00:00]} 50. Kf5 {[%emt 0:00:00]} Bb4 {[%emt 0:00:00]} 51. a4 {[%emt 0:00:00]} Bd2 {[%emt 0:00:00]} 52. Bd4 {[%emt 0:00:00]} Ba5 {[%emt 0:00:00]} 53. Be5 {[%emt 0:00:00]} Bb4 {[%emt 0:00:00]} 54. Bc7 {[%emt 0:00:00] Weighted Error Value: White=0.06 (flawless) /Black=0.44} (54. Bf6 $142 Ba5 55. Be5) 1-0

[Event "Krakow Championship-A 2022"]
[Site "Krakow"]
[Date "2022.06.26"]
[Round "2.19"]
[White "Holtel, Jasper"]
[Black "Kvaloy, Aksel Bu"]
[Result "1-0"]
[ECO "A06"]
[WhiteElo "2347"]
[BlackElo "2296"]
[Annotator "TA"]
[PlyCount "53"]
[EventDate "2022.06.25"]
[EventType "swiss"]
[EventCountry "POL"]
[SourceTitle "playchess.com"]
[Source "ChessBase"]
[SourceQuality "1"]
[TimeControl "40/5400+30:1800+30"]

{[%evp 14,53,0,-4,-18,0,44,45,117,109,145,129,144,135,138,151,136,114,412,425,466,466,466,466,450,451,458,450,446,439,539,534,524,529,527,535,520,538,509,548,502,448]} 1. Nf3 {[%emt 0:01:14]} d5 {[%emt 0:00:31]} 2. g3 {[%emt 0:00:28]} g6 {[%emt 0:00:17]} 3. Bg2 {[%emt 0:00:16]} Bg7 {[%emt 0:00:15]} 4. c4 {[%emt 0:00:09]} dxc4 {[%emt 0:00:44]} 5. O-O {[%emt 0:04:14]} Nc6 {[%emt 0:01:35]} 6. Na3 {[%emt 0:01:17]} e5 {[%emt 0:04:29]} 7. Nxc4 {[%emt 0:00:28]} Nge7 {[%emt 0:01:23]} 8. d3 {[%emt 0:02:41][%cal Bd2d3,Bd3e4][%mdl 32]} O-O {[%emt 0:01:03] A20: English Opening: 1...e5.} 9. Rb1 {[%emt 0:02:47]} h6 {[%emt 0:05:16]} 10. b4 {[%emt 0:11:06]} Nd5 {[%emt 0:01:47] [#]} (10... a6 $14) 11. Bb2 $146 {[%emt 0:07:10]} ({Predecessor:} 11. Bd2 a6 12. a4 Re8 13. Qc1 Kh7 14. Ne3 Nde7 15. Re1 Be6 16. Bc3 Nd4 17. Qb2 {1-0 (30) Clari Mascarell,J-Garcia Fernandez,C (2360) Mislata 1994}) 11... e4 {[%emt 0:17:05]} 12. dxe4 {[%emt 0:02:35]} Ndxb4 {[%emt 0:01:13] [#]} 13. Qb3 {[%emt 0:15:21]} Be6 {[%emt 0:09:42] Strongly threatening ...Bxb2.} 14. Bxg7 {[%emt 0:06:57]} Kxg7 {[%emt 0:00:13]} 15. a3 {[%emt 0:02:36]} Na6 {[%emt 0:18:13][%mdl 8192] Loses the game.} (15... Kh7 $16 {was worth a try.}) 16. Qxb7 $18 {[%emt 0:03:15]} Bxc4 {[%emt 0:01:14] White is clearly winning.} 17. Qxc6 {[%emt 0:00:24]} Bxe2 {[%emt 0:00:26]} 18. Rfe1 {[%emt 0:00:42]} Bxf3 {[%emt 0:04:07]} 19. Bxf3 {[%emt 0:00:24]} Qd6 {[%emt 0:01:55]} 20. Qc3+ {[%emt 0:01:02]} Kg8 {[%emt 0:00:15]} 21. e5 {[%emt 0:00:24]} Qc5 {[%emt 0:00:06]} 22. Qxc5 Nxc5 {[%emt 0:00:02]} 23. Bxa8 {[%emt 0:01:15]} Rxa8 {[%emt 0:00:05]} 24. Rb5 {[%emt 0:01:06]} Ne6 {[%emt 0:00:20]} 25. Reb1 {[%emt 0:00:42]} Rd8 {[%emt 0:02:23]} 26. Rb8 {[%emt 0:00:09] [#] Threatens to win with Rxd8+.} Kf8 {[%emt 0:00:04]} 27. R1b7 {[%emt 0:02:33] Weighted Error Value: White=0.01 (flawless) /Black=0.41} 1-0

[Event "Krakow Championship-A 2022"]
[Site "Krakow"]
[Date "2022.06.26"]
[Round "2.20"]
[White "Liu, Casper"]
[Black "Sieber, Fiona"]
[Result "1-0"]
[ECO "A04"]
[WhiteElo "2218"]
[BlackElo "2264"]
[Annotator "TA"]
[PlyCount "73"]
[EventDate "2022.06.25"]
[EventType "swiss"]
[EventCountry "POL"]
[SourceTitle "playchess.com"]
[Source "ChessBase"]
[SourceQuality "1"]
[TimeControl "40/5400+30:1800+30"]

{[%evp 10,73,0,0,0,0,0,0,0,0,0,-2,-2,-16,-22,-9,0,-2,0,16,34,0,0,0,0,0,0,-39,-20,-26,-26,-20,-23,-16,-15,-9,42,0,62,58,68,58,99,93,167,150,155,154,166,163,245,238,240,240,248,239,243,235,232,238,465,462,29994,29995,29995,29996]} 1. Nf3 {[%emt 0:00:08]} c5 {[%emt 0:00:31]} 2. g3 {[%emt 0:00:40]} Nc6 {[%emt 0:00:25]} 3. d4 {[%emt 0:01:57]} cxd4 {[%emt 0:02:29]} 4. Nxd4 {[%emt 0:00:06]} g6 {[%emt 0:02:44]} 5. Bg2 {[%emt 0:00:04]} Bg7 {[%emt 0:00:08]} 6. c3 {[%emt 0:01:37]} d5 {[%emt 0:04:22] A04: Unusual lines after 1 Nf3 and King's Indian Attack.} 7. O-O {[%emt 0:03:34]} Nf6 {[%emt 0:01:30]} 8. Qb3 {[%emt 0:04:18]} O-O {[%emt 0:01:09] The position is equal.} 9. Rd1 {[%emt 0:00:06]} e6 {[%emt 0:06:32] [#]} 10. Na3 $146 {[%emt 0:12:05]} ({Predecessor:} 10. e4 Nxd4 11. Rxd4 Nxe4 12. Rd1 Nc5 13. Qc2 b5 14. Be3 Qd6 15. Na3 Bd7 16. Qe2 {0-1 (68) Torwelle,M (1556)-Raulf,C (1575) Syke 2004}) 10... Qe7 {[%emt 0:01:17]} 11. c4 {[%emt 0:04:02]} Nxd4 {[%emt 0:17:46]} 12. Rxd4 {[%emt 0:00:03]} e5 {[%emt 0:00:09]} 13. Rd1 {[%emt 0:00:30]} d4 {[%emt 0:00:29]} 14. e3 {[%emt 0:01:31]} Nd7 {[%emt 0:04:17]} 15. exd4 {[%emt 0:00:50]} exd4 {[%emt 0:00:04]} 16. Bf4 {[%emt 0:01:38]} Nc5 {[%emt 0:00:38]} 17. Qb4 {[%emt 0:00:08] Hoping for Nb5.} a5 {[%emt 0:08:34]} 18. Qb6 {[%emt 0:02:02]} (18. Qd2 $5 {[%cal Ra3b5]}) 18... Ra6 {[%emt 0:01:38]} 19. Qc7 {[%emt 0:02:10]} Qxc7 {[%emt 0:07:38]} 20. Bxc7 {[%emt 0:00:02]} d3 {[%emt 0:02:10]} 21. Nb5 {[%emt 0:05:49][%cal Ba3b5,Bb5c3,Bc3d5][%mdl 32]} Bg4 {[%emt 0:07:29]} 22. Rd2 {[%emt 0:01:22]} Rc8 {[%emt 0:09:24]} ({Black should play} 22... Re8 $11) 23. Re1 {[%emt 0:06:20]} Be2 {[%emt 0:02:41]} (23... Be6 $11) 24. Bf4 $14 {[%emt 0:03:15]} Rb6 {[%emt 0:03:36]} 25. Be3 {[%emt 0:00:26]} Bf8 {[%emt 0:06:14]} 26. Nc3 {[%emt 0:06:17]} Rb4 {[%emt 0:06:08]} (26... Bg4 $16) 27. b3 {[%emt 0:01:33][%cal Bb2b3,Bb3b4][%mdl 32]} a4 {[%emt 0:01:12]} 28. Nd5 {[%emt 0:01:05]} ({Don't do} 28. Nxe2 dxe2 29. bxa4 (29. Rdxe2 axb3 30. axb3 Rxb3 $16) 29... Rxc4 $16) 28... Ne6 {[%emt 0:01:10][%cal Oa4b3]} 29. c5 {[%emt 0:05:01]} Rb5 {[%emt 0:01:11] [#]} (29... Rd4 $142) 30. b4 $1 $18 {[%emt 0:00:01]} (30. bxa4 Ra5 $14) 30... a3 {[%emt 0:00:49]} 31. Be4 {[%emt 0:00:05]} Nc7 {[%emt 0:00:16] ...Nxd5 is the strong threat.} 32. Nxc7 Rxc7 33. Bxd3 {[%emt 0:08:14]} Bxd3 34. Rxd3 {Black must now prevent Rd8.} Rxb4 $2 {[%emt 0:00:18]} (34... Kg7 35. Bd4+ (35. Rxa3 Rxb4 36. Rc1 Be7 $16) 35... f6) 35. Rd8 {[%emt 0:00:14] White threatens Bh6 and mate.} Re7 {[%emt 0:02:11] [#]} (35... Kg7 $18 36. Rxf8 Rb2) 36. Bh6 $1 {[%csl Gh6][%cal Rd8f8]} Rxe1+ 37. Kg2 {[%emt 0:00:25] Weighted Error Value: White=0.05 (flawless) /Black=0.48} 1-0

[Event "Krakow Championship-A 2022"]
[Site "Krakow"]
[Date "2022.06.26"]
[Round "2.21"]
[White "Trybus, Daniel"]
[Black "Pniaczek, Marek"]
[Result "0-1"]
[ECO "A05"]
[WhiteElo "2145"]
[BlackElo "2298"]
[Annotator "TA"]
[PlyCount "72"]
[EventDate "2022.06.25"]
[EventType "swiss"]
[EventCountry "POL"]
[SourceTitle "playchess.com"]
[Source "ChessBase"]
[SourceQuality "1"]
[TimeControl "40/5400+30:1800+30"]

{[%evp 14,72,0,0,14,20,24,14,34,10,37,37,30,-17,-19,-18,0,0,0,0,9,9,4,4,4,-14,-11,-27,-22,-40,-50,-149,-148,-233,-207,-488,-445,-421,-329,-377,-370,-359,-345,-350,-303,-297,-295,-862,-852,-912,-905,-897,-879,-1052,-1052,-1045,-1039,-1013,-997,-931,-908]} 1. Nf3 {[%emt 0:00:11]} Nf6 {[%emt 0:03:30]} 2. g3 {[%emt 0:00:07]} d5 {[%emt 0:00:05]} 3. Bg2 {[%emt 0:00:02]} Bf5 {[%emt 0:01:50]} 4. O-O {[%emt 0:00:25]} e6 {[%emt 0:01:41]} 5. d3 {[%emt 0:00:44][%cal Bd2d3,Bd3e4,Be4e5][%mdl 32]} h6 {[%emt 0:01:54]} 6. Nbd2 {[%emt 0:00:45]} Be7 {[%emt 0:04:05]} 7. Qe1 {[%emt 0:01:52]} O-O {[%emt 0:03:00]} 8. e4 {[%emt 0:00:02]} dxe4 {[%emt 0:01:36] A07: Réti Opening: New York and Capablanca Systems.} 9. dxe4 {[%emt 0:00:02]} Bh7 {[%emt 0:00:20]} 10. Qe2 {[%emt 0:01:08]} c6 {[%emt 0:04:07] The position is equal.} 11. Rd1 {[%emt 0:01:55]} Nbd7 {[%emt 0:01:14]} 12. e5 {[%emt 0:03:34]} Nd5 {[%emt 0:01:50][%cal Bf6d5,Bd5c3,Bc3e2][%mdl 32] [#]} 13. Ne4 $146 {[%emt 0:01:17]} (13. c4 {might be stronger.} N5b6 14. Ne4) ({Predecessor:} 13. c4 Nb4 14. Ne4 a5 15. Bf4 Bxe4 16. Qxe4 Nc5 17. Qe2 Qb6 18. Be3 Rfd8 19. Nd4 {1-0 (37) Vasiukov,E (2455)-Bykhovsky,A (2354) Suzdal 2011}) 13... b5 $11 {[%emt 0:02:59]} 14. b3 {[%emt 0:03:14]} Bxe4 {[%emt 0:03:52]} 15. Qxe4 {[%emt 0:00:27]} Nc3 {[%emt 0:00:10][%csl LRd1,LRe4]} 16. Qg4 {[%emt 0:00:28][%cal Oc1h6] aiming for Bxh6!} Ne2+ {[%emt 0:30:50] Pair of Knights!} ({But not} 16... Nxd1 17. Bxh6 g6 18. Rxd1 $16) 17. Kf1 {[%emt 0:04:04]} Nxc1 {[%emt 0:00:05]} 18. Raxc1 {[%emt 0:01:25]} Qc7 {[%emt 0:00:32]} 19. Re1 {[%emt 0:02:09]} Rad8 {[%emt 0:01:24]} 20. Rcd1 {[%emt 0:03:04]} (20. c4 $5 {[%cal Rc4b5]}) 20... Bc5 {[%emt 0:04:14]} 21. Qf4 {[%emt 0:08:33]} Nb6 {[%emt 0:01:56][%cal Bd7b6,Bb6d5,Bd5e3][%mdl 32]} 22. g4 {[%emt 0:05:22] Black converts the advantage convincingly.} ({White should try} 22. Nd4 $15) 22... Nd5 $17 {[%emt 0:01:36]} 23. Qg3 {[%emt 0:00:36] [#]} (23. Qc1 $17) 23... Bb4 $1 $19 {[%emt 0:06:22]} 24. Re4 $2 {[%emt 0:03:19] [#]} (24. c4 {might work better.} bxc4 25. bxc4 Bxe1 26. cxd5) 24... Ne3+ $1 {[%emt 0:00:49][%mdl 512]} 25. fxe3 {[%emt 0:01:54]} Rxd1+ {[%emt 0:00:04]} 26. Ke2 {[%emt 0:00:11] [#]} Rc1 {[%emt 0:00:49]} 27. Rxb4 {[%emt 0:01:53]} Rxc2+ {[%emt 0:00:05]} 28. Kf1 {[%emt 0:01:36]} Rc1+ {[%emt 0:01:17]} ({Stronger than} 28... Rxa2 29. g5 h5 30. Kg1 $17) 29. Ne1 {[%emt 0:03:25]} c5 {[%emt 0:03:45]} 30. Rxb5 {[%emt 0:07:23]} (30. Rf4 Qa5 31. b4 cxb4 32. Qf2) 30... Qd7 {[%emt 0:00:52] Black is clearly winning.} 31. Rb7 {[%emt 0:07:41] [#]} Qd3+ $1 {[%emt 0:00:10]} 32. Kg1 {[%emt 0:00:42]} Qd2 {[%emt 0:00:04][%csl LRa2,LRe1]} 33. Qf2 {[%emt 0:01:01]} Rxe1+ {[%emt 0:00:29]} 34. Bf1 {[%emt 0:00:00]} Qd1 {[%emt 0:01:00] Threatens to win with ...f6.} 35. Kg2 {[%emt 0:04:34]} Qxg4+ {[%emt 0:00:14]} 36. Qg3 {[%emt 0:00:06]} Qe4+ {[%emt 0:00:07] Weighted Error Value: White=0.54/Black=0.04 (flawless)} 0-1

[Event "Krakow Championship-A 2022"]
[Site "Krakow"]
[Date "2022.06.26"]
[Round "2.22"]
[White "Goroshkov, Maksym"]
[Black "Easwaralingam, Adesh"]
[Result "1/2-1/2"]
[ECO "B22"]
[WhiteElo "2226"]
[BlackElo "2116"]
[Annotator "RC"]
[PlyCount "77"]
[EventDate "2022.06.25"]
[EventType "swiss"]
[EventCountry "POL"]
[SourceTitle "playchess.com"]
[Source "ChessBase"]
[SourceQuality "1"]
[TimeControl "40/5400+30:1800+30"]

1. e4 {[%emt 0:00:03]} c5 {[%emt 0:00:16]} 2. c3 {[%emt 0:00:07]} Nf6 {[%emt 0:02:48]} 3. e5 {[%emt 0:00:05]} Nd5 {[%emt 0:00:16]} 4. Bc4 {[%emt 0:00:04]} Nb6 {[%emt 0:00:45]} 5. Bb3 {[%emt 0:00:14]} c4 {[%emt 0:00:54]} 6. Bc2 {[%emt 0:00:03]} Nc6 {[%emt 0:00:31]} 7. Nf3 {[%emt 0:00:08]} d5 {[%emt 0:00:24]} 8. exd6 {[%emt 0:03:29]} Qxd6 {[%emt 0:01:24]} 9. d4 {[%emt 0:00:37]} cxd3 {[%emt 0:05:04]} 10. Qxd3 {[%emt 0:00:04]} Bg4 {[%emt 0:08:17]} 11. Qxd6 {[%emt 0:01:45]} exd6 {[%emt 0:00:08]} 12. Nbd2 {[%emt 0:01:42]} O-O-O {[%emt 0:03:20]} 13. O-O {[%emt 0:00:12]} h6 {[%emt 0:10:29]} 14. h3 {[%emt 0:06:46]} Be6 {[%emt 0:02:03]} 15. Nb3 {[%emt 0:00:19]} d5 {[%emt 0:06:10]} 16. Nbd4 {[%emt 0:00:13]} Bd6 {[%emt 0:03:07]} 17. a4 {[%emt 0:01:07]} a6 {[%emt 0:01:21]} 18. Bd3 {[%emt 0:02:00]} Nxd4 19. Nxd4 Be5 {[%emt 0:05:13]} 20. Re1 {[%emt 0:01:01]} Bxd4 {[%emt 0:06:39]} 21. cxd4 {[%emt 0:00:04]} Nc4 {[%emt 0:01:55]} 22. b3 {[%emt 0:00:55]} Nd6 {[%emt 0:00:32]} 23. Bf4 {[%emt 0:00:32]} Kd7 {[%emt 0:01:28]} 24. Rac1 {[%emt 0:01:15]} Rc8 {[%emt 0:01:52]} 25. Rc5 {[%emt 0:00:39]} Ne4 {[%emt 0:01:55]} 26. Bxe4 {[%emt 0:01:14]} Rxc5 {[%emt 0:00:49]} 27. dxc5 {[%emt 0:00:29]} dxe4 {[%emt 0:00:07]} 28. b4 {[%emt 0:03:14]} Bb3 {[%emt 0:02:23]} 29. b5 {[%emt 0:04:10]} Bxa4 {[%emt 0:14:45]} 30. c6+ {[%emt 0:00:07]} Kc8 {[%emt 0:00:16]} 31. cxb7+ {[%emt 0:02:45]} Kxb7 {[%emt 0:00:14]} 32. bxa6+ {[%emt 0:00:03]} Kxa6 {[%emt 0:00:26]} 33. Rxe4 {[%emt 0:00:05]} Bc6 {[%emt 0:02:29]} 34. Re7 {[%emt 0:00:48]} Bd5 {[%emt 0:00:25]} 35. Be5 {[%emt 0:00:10]} Rg8 {[%emt 0:01:58]} 36. Bd4 {[%emt 0:00:16]} Kb5 {[%emt 0:01:30]} 37. Rc7 {[%emt 0:00:07]} Be6 {[%emt 0:00:30]} 38. f4 {[%emt 0:01:27]} g6 {[%emt 0:00:27]} 39. Rc5+ {[%emt 0:00:55]} 1/2-1/2